fUSD/lending_fUSD_20250201
["ID","MTS","AMOUNT","RATE_DAILY","PERIOD"]
[351199871,1738411841828,-500.0,0.00016712,2]
[351199872,1738411841837,-500.0,0.00016712,2]
[351199873,1738411841847,-500.0,0.00016712,2]
[351199874,1738411841855,-500.0,0.00016712,2]
[351199875,1738411841865,-500.0,0.00016712,2]
[351199876,1738411841874,-500.0,0.00016712,2]
[351199877,1738411841883,-500.0,0.00016712,2]
[351199878,1738411841893,-315.995754,0.00016712,2]
[351199879,1738411841902,-500.0,0.00016712,2]
[351199880,1738411841911,-500.0,0.00016712,2]
[351199881,1738411841920,-244.42268502,0.00016712,2]
[351199882,1738411841930,-322.957953,0.00016712,2]
[351199883,1738411841939,-500.0,0.00016712,2]
[351199884,1738411841948,-575.378055,0.00016712,2]
[351199885,1738411841957,-500.0,0.00016712,2]
[351199886,1738411841967,-500.0,0.00016712,2]
[351199887,1738411841977,-513.69,0.00016712,2]
[351199888,1738411841986,-500.0,0.00016712,2]
[351199889,1738411841995,-500.0,0.00016712,2]
[351199890,1738411842005,-500.0,0.00016712,2]
[351199891,1738411842014,-500.0,0.00016712,2]
[351199892,1738411842023,-500.0,0.00016712,2]
[351199893,1738411842032,-500.0,0.00016712,2]
[351199894,1738411842042,-500.0,0.00016712,2]
[351199895,1738411842058,-500.0,0.00016712,2]
[351199896,1738411842068,-500.0,0.00016712,2]
[351199897,1738411842077,-500.0,0.00016712,2]
[351199898,1738411842086,-500.0,0.00016712,2]
[351199899,1738411842095,-500.0,0.00016712,2]
[351199900,1738411842104,-500.0,0.00016712,2]
[351199901,1738411842114,-500.0,0.00016712,2]
[351199902,1738411842122,-500.0,0.00016712,2]
[351199903,1738411842132,-439.16559373,0.00016712,2]
[351199904,1738411842141,-500.0,0.00016712,2]
[351199905,1738411842150,-726.91,0.00016712,2]
[351199906,1738411842159,-1000.0,0.00016712,7]
[351199907,1738411842169,-500.0,0.00016712,2]
[351199908,1738411842178,-500.0,0.00016712,2]
[351199909,1738411842187,-599.42,0.00016712,2]
[351199910,1738411842197,-500.0,0.00016712,2]
[351199911,1738411842207,-500.0,0.00016712,2]
[351199912,1738411842216,-500.0,0.00016712,2]
[351199913,1738411842225,-500.0,0.00016712,2]
[351199914,1738411842235,-500.0,0.00016712,2]
[351199915,1738411842244,-500.0,0.00016712,2]
[351199916,1738411842254,-500.0,0.00016712,2]
[351199917,1738411842263,-504.5,0.00016712,2]
[351199918,1738411842273,-500.0,0.00016712,2]
[351199919,1738411842283,-500.0,0.00016712,2]
[351199920,1738411842292,-500.0,0.00016712,2]
[351199921,1738411842302,-500.0,0.00016712,2]
[351199922,1738411842312,-500.0,0.00016712,2]
[351199923,1738411842321,-712.01,0.00016712,2]
[351199924,1738411842331,-500.0,0.00016712,2]
[351199925,1738411842340,-500.0,0.00016712,2]
[351199926,1738411842349,-611.2,0.00016712,2]
[351199927,1738411842358,-500.0,0.00016712,2]
[351199928,1738411842368,-818.05,0.00016712,2]
[351199929,1738411842377,-729.21,0.00016712,2]
[351199930,1738411842387,-500.0,0.00016712,2]
[351199931,1738411842396,-500.0,0.00016712,2]
[351199932,1738411842405,-762.51,0.00016712,2]
[351199933,1738411842415,-711.71,0.00016712,2]
[351199934,1738411842424,-646.67,0.00016712,2]
[351199935,1738411842433,-2697.47,0.00016712,2]
[351199936,1738411842443,-853.31,0.00016712,2]
[351199937,1738411842452,-173.91,0.00016712,2]
[351199938,1738411842462,-500.0,0.00016712,2]
[351199939,1738411842471,-1543.97,0.00016712,2]
[351199940,1738411842480,-682.59,0.00016712,2]
[351199941,1738411842490,-500.0,0.00016712,2]
[351199942,1738411842500,-500.0,0.00016712,2]
[351199943,1738411842510,-500.0,0.00016712,2]
[351199944,1738411842519,-500.0,0.00016712,2]
[351199945,1738411842528,-2069.06,0.00016712,2]
[351199946,1738411842537,-500.0,0.00016712,2]
[351199947,1738411842547,-500.0,0.00016712,2]
[351199948,1738411842556,-500.0,0.00016712,2]
[351199949,1738411842566,-206.99,0.00016712,2]
[351199950,1738411842575,-2266.13,0.00016712,2]
[351199951,1738411842585,-500.0,0.00016712,2]
[351199952,1738411842594,-500.0,0.00016712,2]
[351199953,1738411842603,-805.59,0.00016712,2]
[351199954,1738411842613,-955.04,0.00016712,2]
[351199955,1738411842622,-1542.31,0.00016712,2]
[351199956,1738411842632,-500.0,0.00016712,2]
[351199957,1738411842642,-1028.16,0.00016712,2]
[351199958,1738411842799,-500.0,0.00016712,2]
[351199959,1738411842809,-500.0,0.00016712,2]
[351199960,1738411842819,-500.0,0.00016712,2]
[351199961,1738411842828,-1558.59,0.00016712,2]
[351199962,1738411842838,-2204.99,0.00016712,2]
[351199963,1738411842847,-568.94,0.00016712,2]
[351199964,1738411842857,-500.0,0.00016712,2]
[351199965,1738411842867,-398.06,0.00016712,2]
[351199966,1738411842876,-418.49856546,0.00016712,2]
[351199967,1738411842887,-1550.09,0.00016712,2]
[351199968,1738411842896,-586.83,0.00016712,2]
[351199969,1738411842905,-556.98,0.00016712,2]
[351199971,1738411842915,-1933.94,0.00016712,2]
[351199973,1738411842925,-1049.37,0.00016712,2]
[351199975,1738411842935,-500.0,0.00016712,2]
[351199977,1738411842945,-500.0,0.00016712,2]
[351199978,1738411842954,-793.96,0.00016712,2]
[351199979,1738411842964,-577.21,0.00016712,2]
[351199980,1738411842974,-844.64,0.00016712,2]
[351199981,1738411842984,-500.0,0.00016712,2]
[351199982,1738411842993,-900.35,0.00016712,2]
[351199983,1738411843003,-500.0,0.00016712,2]
[351199984,1738411843014,-657.2,0.00016712,2]
[351199986,1738411843023,-671.5,0.00016712,2]
[351199988,1738411843033,-534.74,0.00016712,2]
[351199990,1738411843043,-500.0,0.00016712,2]
[351199992,1738411843052,-1515.23,0.00016712,2]
[351199995,1738411843065,-580.99,0.00016712,2]
[351199997,1738411843075,-500.0,0.00016712,2]
[351199999,1738411843084,-802.48,0.00016712,2]
[351200001,1738411843095,-500.0,0.00016712,2]
[351200002,1738411843104,-1133.17,0.00016712,2]
[351200003,1738411843113,-514.28,0.00016712,2]
[351200004,1738411843123,-659.8,0.00016712,2]
[351200007,1738411843143,-500.0,0.00016712,2]
[351200009,1738411843164,-500.0,0.00016712,2]
[351200010,1738411843174,-500.0,0.00016712,2]
[351200011,1738411843184,-601.66,0.00016712,2]
[351200012,1738411843195,-599.49,0.00016712,2]
[351200013,1738411843204,-936.62,0.00016712,2]
[351200014,1738411843214,-500.0,0.00016712,2]
[351200015,1738411843223,-1974.22,0.00016712,2]
[351200016,1738411843232,-1351.44,0.00016712,2]
[351200017,1738411843242,-500.0,0.00016712,2]
[351200018,1738411843252,-500.0,0.00016712,2]
[351200019,1738411843264,-767.79,0.00016712,2]
[351200020,1738411843274,-500.0,0.00016712,2]
[351200021,1738411843285,-1764.38,0.00016712,2]
[351200022,1738411843300,-705.47,0.00016712,2]
[351200023,1738411843309,-579.57,0.00016712,2]
[351200024,1738411843319,-1709.77,0.00016712,2]
[351200025,1738411843328,-500.0,0.00016712,2]
[351200026,1738411843337,-1008.57,0.00016712,2]
[351200027,1738411843347,-500.0,0.00016712,2]
[351200028,1738411843356,-932.01,0.00016712,2]
[351200029,1738411843366,-500.0,0.00016712,2]
[351200030,1738411843375,-1081.93,0.00016712,2]
[351200031,1738411843385,-589.53,0.00016712,2]
[351200032,1738411843394,-593.64090122,0.00016712,2]
[351200033,1738411843404,-1070.58,0.00016712,2]
[351200034,1738411843413,-1033.06,0.00016712,2]
[351200035,1738411843423,-500.0,0.00016712,2]
[351200036,1738411843432,-1964.94,0.00016712,2]
[351200037,1738411843442,-553.47,0.00016712,2]
[351200038,1738411843451,-500.0,0.00016712,2]
[351200039,1738411843461,-500.0,0.00016712,2]
[351200040,1738411843470,-615.77,0.00016712,2]
[351200041,1738411843480,-500.0,0.00016712,2]
[351200042,1738411843490,-898.06,0.00016712,2]
[351200043,1738411843499,-912.51,0.00016712,2]
[351200044,1738411843508,-500.0,0.00016712,2]
[351200045,1738411843518,-1744.47,0.00016712,2]
[351200046,1738411843527,-1113.91,0.00016712,2]
[351200047,1738411843536,-1685.53,0.00016712,2]
[351200048,1738411843546,-353.62872798,0.00016712,2]
[351200050,1738411843555,-500.0,0.00016712,2]
[351200052,1738411843564,-1110.81,0.00016712,2]
[351200054,1738411843574,-1137.55,0.00016712,2]
[351200056,1738411843583,-503.6,0.00016712,2]
[351200058,1738411843592,-500.0,0.00016712,2]
[351200059,1738411843601,-2428.62,0.00016712,2]
[351200060,1738411843610,-557.24,0.00016712,2]
[351200061,1738411843620,-1053.32,0.00016712,2]
[351200062,1738411843630,-500.0,0.00016712,2]
[351200063,1738411843640,-500.0,0.00016712,2]
[351200064,1738411843651,-500.0,0.00016712,2]
[351200065,1738411843660,-5541.43,0.00016712,2]
[351200067,1738411843671,-2765.7,0.00016712,2]
[351200069,1738411843681,-1099.72,0.00016712,2]
[351200071,1738411843693,-500.0,0.00016712,2]
[351200073,1738411843703,-500.0,0.00016712,2]
[351200075,1738411843713,-706.13,0.00016712,2]
[351200076,1738411843723,-500.0,0.00016712,2]
[351200078,1738411843733,-1496.75,0.00016712,2]
[351200080,1738411843743,-500.0,0.00016712,2]
[351200082,1738411843753,-1113.01,0.00016712,2]
[351200084,1738411843765,-500.0,0.00016712,2]
[351200086,1738411843778,-1923.98,0.00016712,2]
[351200088,1738411843788,-1021.77,0.00016712,2]
[351200090,1738411843798,-500.0,0.00016712,2]
[351200092,1738411843808,-500.0,0.00016712,2]
[351200094,1738411843818,-500.0,0.00016712,2]
[351200096,1738411843827,-500.0,0.00016712,2]
[351200098,1738411843838,-1745.93,0.00016712,2]
[351200100,1738411843847,-1989.06,0.00016712,2]
[351200102,1738411843857,-720.75,0.00016712,2]
[351200104,1738411843867,-1651.12,0.00016712,2]
[351200105,1738411843877,-342.79683006,0.00016712,2]
[351200106,1738411843913,-319.1452,0.00016575,2]
[351200107,1738411844150,-526.48,0.00016438,2]
[351200108,1738411844159,-500.0,0.00016438,2]
[351200109,1738411844169,-580.8048,0.00016575,2]
[351200110,1738411844179,-526.48,0.00016575,2]
[351200111,1738411844189,-157.20316994,0.00016712,2]
[351200112,1738411844199,-2730.36,0.00016712,2]
[351200113,1738411844208,-500.0,0.00016712,2]
[351200114,1738411844218,-500.0,0.00016712,2]
[351200115,1738411844227,-500.0,0.00016712,2]
[351200116,1738411844237,-500.0,0.00016712,2]
[351200117,1738411844246,-1238.98,0.00016712,2]
[351200118,1738411844256,-500.0,0.00016712,2]
[351200119,1738411844266,-762.58,0.00016712,2]
[351200120,1738411844275,-500.0,0.00016712,2]
[351200121,1738411844285,-899.95,0.00016712,2]
[351200122,1738411844294,-526.48,0.00016712,2]
[351200123,1738411844303,-4034.10720069,0.00016717,2]
[351200124,1738411844312,-34295.7909295,0.00016745,2]
[351200125,1738411844324,-328.86805204,0.00016745,2]
[351200126,1738411844335,-1758.15910556,0.00016745,2]
[351200127,1738411844344,-500.0,0.00016748,2]
[351200128,1738411844354,-709.89,0.00016748,2]
[351200129,1738411844363,-982.02,0.00016748,2]
[351200130,1738411844372,-609.62019944,0.00016748,2]
[351200131,1738411844388,-453.76980056,0.00016748,2]
[351200132,1738411844398,-303.47,0.00016748,2]
[351200133,1738411844407,-1000.0,0.00016748,2]
[351200134,1738411844415,-943.25,0.00016748,2]
[351200135,1738411844424,-500.0,0.00016748,2]
[351200136,1738411844433,-1631.01,0.00016748,2]
[351200138,1738411844443,-1071.14,0.00016748,2]
[351200139,1738411844452,-219.35873274,0.0001678,2]
[351200140,1738411844462,-150.0,0.00016798,2]
[351200141,1738411844472,-219.88,0.00016813,2]
[351200142,1738411844482,-150.0,0.00016825,2]
[351200143,1738411844491,-3735.71225726,0.00016831,2]
[351200144,1738411844513,-298.39494343,0.00016831,2]
[351200145,1738411844523,-150.0,0.00016847,2]
[351200146,1738411844533,-622.09,0.00016848,2]
[351200147,1738411844543,-150.0,0.00016848,2]
[351200148,1738411844553,-506.47344298,0.00016849,2]
[351200149,1738411844565,-549.73316218,0.00016849,2]
[351200150,1738411844575,-471.9,0.00016849,2]
[351200151,1738411844587,-217.89339484,0.00016849,2]
[351200152,1738411844596,-500.0,0.00016849,2]
[351200153,1738411844606,-300.0,0.00016849,2]
[351200154,1738411844616,-500.0,0.00016849,2]
[351200155,1738411844626,-123.30660515,0.00016849,2]
[351200156,1738411844638,-376.69339485,0.00016849,2]
[351200157,1738411844647,-500.0,0.00016849,2]
[351200158,1738411844657,-500.0,0.00016849,2]
[351200159,1738411844667,-500.0,0.00016849,2]
[351200160,1738411844678,-500.0,0.00016849,2]
[351200161,1738411844688,-500.0,0.00016849,2]
[351200162,1738411844698,-619.09655526,0.00016849,2]
[351200163,1738411844707,-500.0,0.00016849,2]
[351200164,1738411844717,-500.0,0.00016849,2]
[351200165,1738411844726,-500.0,0.00016849,2]
[351200166,1738411844736,-500.0,0.00016849,2]
[351200167,1738411844745,-500.0,0.00016849,2]
[351200168,1738411844754,-500.0,0.00016849,2]
[351200169,1738411844764,-500.0,0.00016849,2]
[351200170,1738411844773,-500.0,0.00016849,2]
[351200171,1738411844783,-500.0,0.00016849,2]
[351200172,1738411844792,-500.0,0.00016849,2]
[351200173,1738411844801,-500.0,0.00016849,2]
[351200174,1738411844811,-500.0,0.00016849,2]
[351200175,1738411844820,-500.0,0.00016849,2]
[351200176,1738411844829,-500.0,0.00016849,2]
[351200177,1738411844839,-500.0,0.00016849,2]
[351200178,1738411844848,-500.0,0.00016849,2]
[351200179,1738411844857,-500.0,0.00016849,2]
[351200180,1738411844867,-500.0,0.00016849,2]
[351200181,1738411844876,-500.0,0.00016849,2]
[351200182,1738411844885,-500.0,0.00016849,2]
[351200183,1738411844895,-500.0,0.00016849,2]
[351200184,1738411844904,-500.0,0.00016849,2]
[351200185,1738411844913,-500.0,0.00016849,2]
[351200186,1738411844922,-200.0,0.00016849,2]
[351200187,1738411844931,-500.0,0.00016849,2]
[351200188,1738411844940,-500.0,0.00016849,2]
[351200189,1738411844950,-500.0,0.00016849,2]
[351200190,1738411844959,-500.0,0.00016849,2]
[351200191,1738411844968,-500.0,0.00016849,2]
[351200192,1738411844978,-500.0,0.00016849,2]
[351200193,1738411844987,-500.0,0.00016849,2]
[351200194,1738411844996,-500.0,0.00016849,2]
[351200195,1738411845006,-500.0,0.00016849,2]
[351200196,1738411845015,-500.0,0.00016849,2]
[351200197,1738411845025,-500.0,0.00016849,2]
[351200198,1738411845034,-500.0,0.00016849,2]
[351200199,1738411845044,-500.0,0.00016849,2]
[351200200,1738411845054,-315.995754,0.00016849,2]
[351200201,1738411845067,-318.52219132,0.00016849,2]
[351200202,1738411845077,-500.0,0.00016849,2]
[351200203,1738411845087,-322.957953,0.00016849,2]
[351200204,1738411845096,-500.0,0.00016849,2]
[351200205,1738411845106,-500.0,0.00016849,2]
[351200206,1738411845116,-500.0,0.00016849,2]
[351200207,1738411845126,-513.69,0.00016849,2]
[351200208,1738411845137,-463.18117592,0.00016849,2]
[351200209,1738411845147,-500.0,0.00016849,2]
[351200210,1738411845157,-500.0,0.00016849,2]
[351200211,1738411845167,-500.0,0.00016849,2]
[351200212,1738411845176,-500.0,0.00016849,2]
[351200213,1738411845186,-500.0,0.00016849,2]
[351200214,1738411845196,-500.0,0.00016849,2]
[351200215,1738411845206,-500.0,0.00016849,2]
[351200216,1738411845216,-500.0,0.00016849,2]
[351200217,1738411845227,-500.0,0.00016849,2]
[351200218,1738411845236,-500.0,0.00016849,2]
[351200219,1738411845245,-500.0,0.00016849,2]
[351200220,1738411845255,-500.0,0.00016849,2]
[351200221,1738411845265,-500.0,0.00016849,2]
[351200222,1738411845274,-500.0,0.00016849,2]
[351200223,1738411845284,-500.0,0.00016849,2]
[351200224,1738411845294,-726.91,0.00016849,2]
[351200225,1738411845304,-500.0,0.00016849,2]
[351200226,1738411845313,-500.0,0.00016849,2]
[351200227,1738411845322,-33.7733686,0.00016849,2]
[351200228,1738411845345,-565.6466314,0.00016849,2]
[351200229,1738411845355,-500.0,0.00016849,2]
[351200230,1738411845364,-18.5033686,0.00016849,2]
[351200231,1738411845377,-311.08509946,0.00016849,2]
[351200232,1738411845680,-170.41153194,0.00016849,2]
[351200233,1738411845689,-500.0,0.00016849,2]
[351200234,1738411845703,-146.51246806,0.00016849,2]
[351200235,1738411845714,-353.48753194,0.00016849,2]
[351200236,1738411845723,-180.54174306,0.00016849,2]
[351200237,1738411845735,-319.45825694,0.00016849,2]
[351200238,1738411845745,-103.29946556,0.00016849,2]
[351200239,1738411845757,-396.70053444,0.00016849,2]
[351200240,1738411845766,-280.48493212,0.00016849,2]
[351200241,1738411845776,-27.86653344,0.00016849,2]
[351200242,1738411845790,-476.63346656,0.00016849,2]
[351200243,1738411845802,-8.96240684,0.00016849,2]
[351200244,1738411845815,-457.00438,0.00016849,2]
[351200245,1738411845827,-34.03321316,0.00016849,2]
[351200246,1738411845836,-500.0,0.00016849,2]
[351200247,1738411845845,-17.37678584,0.00016849,2]
[351200248,1738411845857,-434.4,0.00016849,2]
[351200249,1738411845868,-48.22321416,0.00016849,2]
[351200250,1738411845878,-369.56078582,0.00016849,2]
[351200254,1738411846014,-130.43921418,0.00016849,2]
[351200255,1738411846047,-338.52078582,0.00016849,2]
[351200256,1738411846064,-161.47921418,0.00016849,2]
[351200257,1738411846074,-395.60580082,0.00016849,2]
[351200258,1738411846086,-316.40419918,0.00016849,2]
[351200259,1738411846096,-500.0,0.00016849,2]
[351200260,1738411846105,-500.0,0.00016849,2]
[351200261,1738411846115,-611.2,0.00016849,2]
[351200262,1738411846125,-500.0,0.00016849,2]
[351200264,1738411846136,-818.05,0.00016849,2]
[351200266,1738411846146,-729.21,0.00016849,2]
[351200268,1738411846155,-500.0,0.00016849,2]
[351200269,1738411846164,-500.0,0.00016849,2]
[351200271,1738411846174,-762.51,0.00016849,2]
[351200273,1738411846183,-711.71,0.00016849,2]
[351200275,1738411846193,-646.67,0.00016849,2]
[351200276,1738411846203,-853.31,0.00016849,2]
[351200277,1738411846212,-500.0,0.00016849,2]
[351200278,1738411846222,-682.59,0.00016849,2]
[351200279,1738411846232,-500.0,0.00016849,2]
[351200280,1738411846241,-500.0,0.00016849,2]
[351200281,1738411846251,-500.0,0.00016849,2]
[351200282,1738411846261,-2069.06,0.00016849,2]
[351200283,1738411846271,-500.0,0.00016849,2]
[351200284,1738411846280,-296.21786881,0.00016849,2]
[351200285,1738411846290,-2266.13,0.00016849,2]
[351200286,1738411846300,-500.0,0.00016849,2]
[351200287,1738411846310,-500.0,0.00016849,2]
[351200288,1738411846320,-805.59,0.00016849,2]
[351200289,1738411846330,-955.04,0.00016849,2]
[351200290,1738411846339,-1542.31,0.00016849,2]
[351200291,1738411846349,-500.0,0.00016849,2]
[351200292,1738411846358,-1028.16,0.00016849,2]
[351200293,1738411846367,-500.0,0.00016849,2]
[351200294,1738411846377,-280.2739075,0.00016849,2]
[351200295,1738411846386,-500.0,0.00016849,2]
[351200296,1738411846395,-1558.59,0.00016849,2]
[351200297,1738411846405,-2204.99,0.00016849,2]
[351200298,1738411846414,-568.94,0.00016849,2]
[351200299,1738411846424,-500.0,0.00016849,2]
[351200300,1738411846434,-1550.09,0.00016849,2]
[351200301,1738411846445,-586.83,0.00016849,2]
[351200302,1738411846454,-556.98,0.00016849,2]
[351200303,1738411846464,-1933.94,0.00016849,2]
[351200304,1738411846473,-1049.37,0.00016849,2]
[351200305,1738411846486,-500.0,0.00016849,2]
[351200306,1738411846495,-500.0,0.00016849,2]
[351200307,1738411846505,-793.96,0.00016849,2]
[351200308,1738411846514,-577.21,0.00016849,2]
[351200309,1738411846525,-844.64,0.00016849,2]
[351200310,1738411846535,-500.0,0.00016849,2]
[351200311,1738411846544,-900.35,0.00016849,2]
[351200312,1738411846555,-500.0,0.00016849,2]
[351200313,1738411846565,-657.2,0.00016849,2]
[351200314,1738411846574,-671.5,0.00016849,2]
[351200315,1738411846584,-534.74,0.00016849,2]
[351200316,1738411846593,-500.0,0.00016849,2]
[351200317,1738411846603,-1515.23,0.00016849,2]
[351200318,1738411846612,-580.99,0.00016849,2]
[351200320,1738411846621,-500.0,0.00016849,2]
[351200322,1738411846630,-802.48,0.00016849,2]
[351200324,1738411846640,-500.0,0.00016849,2]
[351200326,1738411846650,-1133.17,0.00016849,2]
[351200328,1738411846659,-514.28,0.00016849,2]
[351200329,1738411846669,-659.8,0.00016849,2]
[351200330,1738411846678,-500.0,0.00016849,2]
[351200331,1738411846688,-500.0,0.00016849,2]
[351200332,1738411846698,-500.0,0.00016849,2]
[351200333,1738411846709,-601.66,0.00016849,2]
[351200334,1738411846727,-599.49,0.00016849,2]
[351200335,1738411846736,-936.62,0.00016849,2]
[351200336,1738411846745,-500.0,0.00016849,2]
[351200337,1738411846755,-1974.22,0.00016849,2]
[351200338,1738411846764,-1351.44,0.00016849,2]
[351200339,1738411846774,-500.0,0.00016849,2]
[351200340,1738411846783,-500.0,0.00016849,2]
[351200341,1738411846793,-767.79,0.00016849,2]
[351200342,1738411846802,-500.0,0.00016849,2]
[351200343,1738411846811,-1764.38,0.00016849,2]
[351200344,1738411846821,-705.47,0.00016849,2]
[351200345,1738411846831,-1709.77,0.00016849,2]
[351200346,1738411846841,-579.57,0.00016849,2]
[351200347,1738411846851,-500.0,0.00016849,2]
[351200348,1738411846860,-1008.57,0.00016849,2]
[351200349,1738411846869,-500.0,0.00016849,2]
[351200350,1738411846879,-932.01,0.00016849,2]
[351200351,1738411846888,-500.0,0.00016849,2]
[351200352,1738411846898,-1081.93,0.00016849,2]
[351200353,1738411846907,-589.53,0.00016849,2]
[351200354,1738411846917,-1070.58,0.00016849,2]
[351200355,1738411846926,-1033.06,0.00016849,2]
[351200356,1738411846935,-500.0,0.00016849,2]
[351200357,1738411846945,-1964.94,0.00016849,2]
[351200358,1738411846955,-553.47,0.00016849,2]
[351200359,1738411846964,-500.0,0.00016849,2]
[351200360,1738411846973,-500.0,0.00016849,2]
[351200361,1738411846983,-615.77,0.00016849,2]
[351200362,1738411846994,-500.0,0.00016849,2]
[351200363,1738411847004,-898.06,0.00016849,2]
[351200364,1738411847014,-912.51,0.00016849,2]
[351200365,1738411847023,-500.0,0.00016849,2]
[351200366,1738411847033,-1744.47,0.00016849,2]
[351200367,1738411847042,-1113.91,0.00016849,2]
[351200368,1738411847056,-1685.53,0.00016849,2]
[351200369,1738411847065,-500.0,0.00016849,2]
[351200370,1738411847074,-1110.81,0.00016849,2]
[351200371,1738411847083,-1137.55,0.00016849,2]
[351200372,1738411847095,-503.6,0.00016849,2]
[351200373,1738411847104,-500.0,0.00016849,2]
[351200374,1738411847113,-2428.62,0.00016849,2]
[351200375,1738411847123,-557.24,0.00016849,2]
[351200376,1738411847133,-1053.32,0.00016849,2]
[351200377,1738411847143,-500.0,0.00016849,2]
[351200378,1738411847154,-513.17798808,0.00016849,2]
[351200379,1738411847164,-500.0,0.00016849,2]
[351200380,1738411847173,-5541.43,0.00016849,2]
[351200381,1738411847183,-2765.7,0.00016849,2]
[351200382,1738411847192,-1099.72,0.00016849,2]
[351200383,1738411847202,-500.0,0.00016849,2]
[351200384,1738411847212,-706.13,0.00016849,2]
[351200385,1738411847227,-500.0,0.00016849,2]
[351200386,1738411847237,-1028.23096223,0.00016849,2]
[351200387,1738411847253,-468.51903777,0.00016849,2]
[351200388,1738411847262,-408.56345917,0.00016849,2]
[351200389,1738411847275,-91.43654083,0.00016849,2]
[351200390,1738411847284,-1113.01,0.00016849,2]
[351200391,1738411847294,-500.0,0.00016849,2]
[351200392,1738411847303,-1923.98,0.00016849,2]
[351200393,1738411847313,-1021.77,0.00016849,2]
[351200394,1738411847323,-152.56875485,0.00016849,2]
[351200395,1738411847332,-500.0,0.00016849,2]
[351200396,1738411847341,-500.0,0.00016849,2]
[351200397,1738411847350,-1745.93,0.00016849,2]
[351200398,1738411847360,-1989.06,0.00016849,2]
[351200399,1738411847369,-720.75,0.00016849,2]
[351200400,1738411847378,-1651.12,0.00016849,2]
[351200401,1738411847388,-500.0,0.00016849,2]
[351200402,1738411847397,-2730.36,0.00016849,2]
[351200403,1738411847407,-500.0,0.00016849,2]
[351200404,1738411847416,-500.0,0.00016849,2]
[351200405,1738411847425,-500.0,0.00016849,2]
[351200406,1738411847435,-500.0,0.00016849,2]
[351200407,1738411847444,-1238.98,0.00016849,2]
[351200408,1738411847454,-500.0,0.00016849,2]
[351200409,1738411847464,-762.58,0.00016849,2]
[351200410,1738411847473,-500.0,0.00016849,2]
[351200411,1738411847483,-899.95,0.00016849,2]
[351200412,1738411847493,-526.48,0.00016849,2]
[351200413,1738411847504,-774.41,0.00016849,2]
[351200414,1738411847514,-416.31036932,0.00016849,2]
[351200415,1738411847734,-22.94963068,0.00016849,2]
[351200416,1738411847743,-439.26,0.00016849,2]
[351200417,1738411847752,-774.41,0.00016849,2]
[351200418,1738411847762,-439.26,0.00016849,2]
[351200419,1738411847772,-774.41,0.00016849,2]
[351200420,1738411847781,-774.41,0.00016849,2]
[351200421,1738411847790,-439.26,0.00016849,2]
[351200422,1738411847799,-439.26,0.00016849,2]
[351200423,1738411847808,-197.31078143,0.00016849,2]
[351200424,1738411847820,-577.09921857,0.00016849,2]
[351200425,1738411847830,-438.42,0.00016849,2]